{"text_format":"1","workbook":"xlsx","n_sheets":2,"sheets":["Data","YTZ"],"not_rendered":{"charts":0,"images":3,"macros":1,"external_links":0,"defined_names":12,"comments":0,"pivot_tables":0},"unopened":[],"bounds":{"document_bytes":16777216,"sheet_cells":100000,"rows_first":2000,"rows_last":500,"rows_between":2000,"halvings":0,"cell_chars":16384,"cell_head_chars":4096},"cells_cut":0,"cells_raw":0,"read":"whole","date_system":"1900"}

{"sheet":"Data","index":0,"n_rows":1,"n_cols":9,"rows_kept":1,"cut":false,"hidden":true,"merged":[]}
["Date","Name","Score",null,"Highscore:",{"$f":"MAX(C:C)","v":0},null,"Lowscore:",{"$f":"MIN(C:C)","v":0}]

{"sheet":"YTZ","index":1,"n_rows":14,"n_cols":17,"rows_kept":14,"cut":false,"hidden":false,"merged":[[11,2,11,5]]}
[]
[3,null,null,"YTZ"]
[]
[null,null,null,{"$f":"IF(AND(COUNTIF(Dice,$D$5)=5,$D$5>0),\"YTZ!\",\"\")","v":""},null,null,null,1,null,null,"3x",null,null,null,"Score","Name","Date"]
[null,null,null,0,false,null,null,2,null,null,"4x",null,null,null,{"$f":"IFERROR(LARGE(HiScore,ROW()-4),\"\")","v":""},{"$f":"IF($O5=\"\",\"\",INDEX(HiName,MATCH($O5,HiScore,0)))","v":""},{"$f":"IF($O5=\"\",\"\",INDEX(HiDate,MATCH($O5,HiScore,0)))","v":""}]
[null,null,null,0,false,null,null,3,null,null,"Full House",null,null,null,"","",""]
[null,null,null,0,false,null,null,4,null,null,"Small Straight",null,null,null,"","",""]
[null,null,null,0,false,null,null,5,null,null,"Large Straight",null,null,null,"","",""]
[null,null,null,0,false,null,null,6,null,null,"YTZ",null,null,null,"","",""]
[null,null,null,{"$f":"IF(AND(COUNTIF(Dice,$D$5)=5,$D$5>0),\"YTZ!\",\"\")","v":""},null,null,null,"Bonus",{"$f":"IF(SUM(ScoreUpper)>62,35,IF(COUNTA(ScoreUpper)=6,0,\"\"))","v":""},null,"Random",null,null,null,"","",""]
[]
[null,null,"vz",null,null,null,null,"Left",{"$f":"SUM(ScoreUpper,ScoreBonus)","v":0},null,"Right",{"$f":"SUM(ScoreLower)","v":0},null,null,"TOTAL",null,{"$f":"SUM(ScoreUpper,ScoreLower,ScoreBonus)","v":0}]
[]
[null,null,null,null,null,null,null,null,null,null,null,null,null,null,"YTZ game by Excel Solutions",null,"http://excel.solutions"]